[Event "Sardinia World Festival-A 2024"]
[Site "Orosei"]
[Date "2024.04.29"]
[Round "3.18"]
[White "Citak, Selim"]
[Black "Lodici, Lorenzo"]
[Result "0-1"]
[ECO "E32"]
[WhiteElo "2327"]
[BlackElo "2565"]
[Annotator "TA"]
[PlyCount "110"]
[EventDate "2024.04.26"]
[EventType "swiss"]
[EventCountry "ITA"]
[SourceTitle "playchess.com"]
[Source "ChessBase"]
[SourceQuality "1"]
[TimeControl "40/5400+30:1800+30"]

{[%evp 22,110,16,1,0,0,0,0,7,0,29,31,69,-8,0,0,0,0,0,-6,4,0,9,0,0,0,0,-54,-45,-42,-64,-30,-41,-72,-61,-76,-48,-73,-71,-65,-58,-99,-106,-135,-125,-112,-120,-115,-120,-140,-149,-172,-173,-186,-177,-180,-122,-149,-139,-139,-139,-204,-202,-241,-234,-245,-246,-247,-247,-233,-250,-385,-330,-390,-388,-380,-380,-750,-785,-1491,-1327,-1143,-1004,-930,-930,-770,-703,-1555,-1470,-4614,-834]} 1. d4 {[%emt 0:00:07]} Nf6 {[%emt 0:00:06]} 2. c4 {[%emt 0:00:07]} e6 {[%emt 0:00:03]} 3. Nc3 {[%emt 0:00:39]} Bb4 {[%emt 0:00:17]} 4. Qc2 {[%emt 0:00:48]} h6 {[%emt 0:00:27]} 5. a3 {[%emt 0:01:38]} Bxc3+ {[%emt 0:00:30]} 6. Qxc3 {[%emt 0:00:07] E32: Nimzo-Indian: Classical (4 Qc2): 4...0-0.} b6 {[%emt 0:00:03]} 7. Nf3 {[%emt 0:03:05]} Bb7 {[%emt 0:00:03]} 8. e3 {[%emt 0:00:30]} O-O {[%emt 0:09:33]} 9. Be2 {[%emt 0:00:14]} Ne4 {[%emt 0:04:49]} 10. Qc2 {[%emt 0:00:10]} Ng5 {[%emt 0:03:57]} 11. Qd1 {[%emt 0:07:07]} Qf6 {[%emt 0:07:10]} 12. Nxg5 {[%emt 0:03:07]} Qxg5 {[%emt 0:00:02]} 13. Bf3 {[%emt 0:00:34]} Bxf3 {[%emt 0:00:06]} 14. Qxf3 {[%emt 0:00:10]} Nc6 {[%emt 0:00:02]} 15. O-O {[%emt 0:09:48]} f5 $146 {[%emt 0:01:43]} ({Predecessor:} 15... Qg6 16. Qe2 Na5 17. Ra2 d5 18. cxd5 exd5 19. Bd2 Nb3 20. Bb4 c5 21. dxc5 Nxc5 {½-½ Malin,D (2122)-Osipov,A (2238) EU-ch 2014 pr29 email}) 16. b4 {[%emt 0:05:32]} f4 {[%emt 0:06:09]} 17. b5 {[%emt 0:07:43]} (17. exf4 $14 Qf6 18. Be3) 17... fxe3 $11 {[%emt 0:02:42]} 18. Qxe3 {[%emt 0:02:08]} Na5 {[%emt 0:01:40]} 19. Qc3 {[%emt 0:07:34]} Qg6 {[%emt 0:04:23]} 20. Be3 {[%emt 0:02:04]} Rf5 {[%emt 0:02:22]} 21. Rad1 {[%emt 0:04:07]} Raf8 {[%emt 0:05:16]} 22. d5 {[%emt 0:02:37]} R8f7 {[%emt 0:00:57]} 23. dxe6 {[%emt 0:10:52]} Qxe6 {[%emt 0:00:32]} 24. c5 {[%emt 0:01:14]} ({White should try} 24. Rc1 $11) 24... Qc4 $1 $15 {[%emt 0:09:45]} (24... Nc4 25. cxb6 axb6 (25... cxb6 26. Bd4 $11) 26. Qb3 $11) 25. Qb4 {[%emt 0:04:15]} Qxb4 $1 {[%emt 0:02:30]} 26. axb4 {[%emt 0:00:01]} Nc4 {[%emt 0:00:20]} 27. Bd4 {[%emt 0:04:34]} Na3 {[%emt 0:02:15]} 28. f4 {[%emt 0:03:39]} ({Avoid the trap} 28. g4 $2 Rf4 29. h3 Nxb5 $19) 28... Nc2 {[%emt 0:09:36]} 29. g3 {[%emt 0:10:29]} d6 {[%emt 0:06:24]} ({Much worse is} 29... Nxb4 $6 30. cxb6 axb6 31. Be5 $11) 30. cxd6 {[%emt 0:01:33]} cxd6 {[%emt 0:00:01]} 31. Bf2 {[%emt 0:04:52]} Rd7 {[%emt 0:01:20]} 32. Rc1 {[%emt 0:00:33]} Nxb4 {[%emt 0:00:28]} 33. Rc8+ {[%emt 0:00:57]} Kf7 {[%emt 0:10:18]} 34. Rfc1 {[%emt 0:01:08]} Rxb5 {[%emt 0:00:06]} 35. R1c7 {[%emt 0:00:08]} Ke7 $1 {[%emt 0:00:23]} 36. Rxd7+ {[%emt 0:00:14]} Kxd7 {[%emt 0:00:02]} 37. Rg8 {[%emt 0:00:06]} g5 {[%emt 0:00:54]} 38. Rg7+ {[%emt 0:00:17]} Ke6 {[%emt 0:01:45]} (38... Kc6 $19 {White must now prevent ...a5.} 39. fxg5 hxg5 40. Rxa7 g4) 39. fxg5 {[%emt 0:00:55]} hxg5 {[%emt 0:00:02]} ({Don't take} 39... Rxg5 40. Rxa7 b5 41. Be3 $11) 40. Rxa7 {[%emt 0:00:08] [#]} Nd3 $1 {[%emt 0:01:15]} 41. Be3 {[%emt 0:34:35]} (41. Ra3 $17 Nxf2 42. Kxf2) 41... g4 {[%emt 0:32:53]} 42. Kf1 {[%emt 0:00:00] [#]} Ne5 $1 {[%emt 0:00:00]} 43. Rh7 {[%emt 0:00:00]} Rb1+ {[%emt 0:00:00]} 44. Ke2 {[%emt 0:00:00]} Rb2+ {[%emt 0:00:00]} 45. Kd1 {[%emt 0:00:00]} Nc4 {[%emt 0:00:00]} 46. Bf4 {[%emt 0:00:00]} (46. Bc1 $142 Rg2 47. Bf4) 46... d5 $19 {[%emt 0:00:00]} 47. h4 {[%emt 0:00:00]} gxh3 {[%emt 0:00:00]} 48. Rxh3 {[%emt 0:00:00]} d4 {[%emt 0:00:00]} 49. Rh4 $2 {[%emt 0:00:00]} (49. Rh5) 49... Kd5 $19 {[%emt 0:00:00]} 50. g4 {[%emt 0:00:00]} d3 {[%emt 0:00:00]} 51. Ke1 {[%emt 0:00:00]} Rb1+ {[%emt 0:00:00]} 52. Kf2 {[%emt 0:00:00]} d2 {[%emt 0:00:00]} 53. Bxd2 {[%emt 0:00:00]} Nxd2 {[%emt 0:00:00]} 54. Ke3 {[%emt 0:00:00]} Nc4+ {[%emt 0:00:00]} 55. Kf4 {[%emt 0:00:00]} Rf1+ {[%emt 0:00:00]} 0-1

[Event "Sardinia World Festival-A 2024"]
[Site "Orosei"]
[Date "2024.04.29"]
[Round "3.19"]
[White "Fiedorek, Michal"]
[Black "Rozen, Eytan"]
[Result "0-1"]
[ECO "B92"]
[WhiteElo "2310"]
[BlackElo "2499"]
[Annotator "TA"]
[PlyCount "176"]
[EventDate "2024.04.26"]
[EventType "swiss"]
[EventCountry "ITA"]
[SourceTitle "playchess.com"]
[Source "ChessBase"]
[SourceQuality "1"]
[TimeControl "40/5400+30:1800+30"]

{[%evp 21,176,0,0,-22,-10,-14,-13,-13,-8,-15,0,-10,0,0,0,0,0,2,0,0,8,6,15,12,12,-36,-19,-21,0,0,0,0,0,0,0,0,0,0,0,0,0,0,0,-26,-3,-39,-28,-119,-117,-117,-120,-101,-22,-23,-24,-22,-25,-32,38,37,37,26,39,19,45,45,51,15,15,12,12,12,12,12,12,12,12,8,8,-63,-63,-63,-63,-63,-63,-105,-105,-105,-105,-105,-105,-105,-105,-105,-105,-105,-105,-105,-105,-105,-105,-105,-105,-105,-105,-105,-105,-105,-105,-105,-105,-105,-105,-105,-105,-105,-105,-105,-105,-105,-105,-105,-105,-105,0,-105,-105,-105,-105,-105,-105,-105,-105,-105,-105,-105,-105,-105,-105,-105,-105,-105,-105,-105,-105,-105,-105,-105,-105,-29980,-29981,-29981,-95,-29986,-29987,-29990,-29991]} 1. e4 {[%emt 0:00:03]} c5 {[%emt 0:04:25]} 2. Nf3 {[%emt 0:00:25]} d6 {[%emt 0:00:55]} 3. d4 {[%emt 0:01:54]} cxd4 {[%emt 0:00:18]} 4. Nxd4 {[%emt 0:00:06]} Nf6 {[%emt 0:00:44]} 5. Nc3 {[%emt 0:00:08]} a6 {[%emt 0:00:08]} 6. Be3 {[%emt 0:01:33]} e5 {[%emt 0:01:20]} 7. Nb3 {[%emt 0:00:38]} Be6 {[%emt 0:00:41]} 8. Be2 {[%emt 0:02:22]} Be7 {[%emt 0:02:58]} 9. Nd5 {[%emt 0:02:52]} Nbd7 {[%emt 0:03:30]} 10. Qd3 {[%emt 0:00:33]} Bxd5 {[%emt 0:05:16]} 11. exd5 {[%emt 0:00:14]} Rc8 {[%emt 0:00:14]} 12. a4 {[%emt 0:17:12]} Nb6 {[%emt 0:04:42]} 13. Bxb6 {[%emt 0:06:09]} Qxb6 {[%emt 0:00:04]} 14. O-O {[%emt 0:01:02] The position is equal.} O-O {[%emt 0:04:10]} 15. a5 {[%emt 0:01:17]} Qb4 {[%emt 0:02:14]} 16. c4 {[%emt 0:18:33]} Nd7 {[%emt 0:06:39]} 17. Ra3 {[%emt 0:04:27]} f5 {[%emt 0:01:46]} 18. Rfa1 {[%emt 0:09:45]} e4 {[%emt 0:02:39]} 19. Qe3 {[%emt 0:01:36]} Nc5 {[%emt 0:09:47] Inhibits Ra4.} 20. Nxc5 {[%emt 0:01:02]} Qxc5 {[%emt 0:00:06]} 21. Qxc5 {[%emt 0:04:05]} Rxc5 {[%emt 0:00:04]} 22. b4 {[%emt 0:01:01]} Rc7 {[%emt 0:01:22]} 23. f4 {[%emt 0:09:20]} (23. R3a2 $11) 23... Bf6 {[%emt 0:05:59]} 24. Rd1 {[%emt 0:00:07]} Rfc8 {[%emt 0:00:12]} 25. Rb3 {[%emt 0:06:34]} Rxc4 {[%emt 0:00:17]} 26. Bxc4 {[%emt 0:00:07]} Rxc4 $11 {[%emt 0:00:02][%mdl 4096] Endgame. KRR-KRB} 27. b5 {[%emt 0:00:49]} Bd4+ {[%emt 0:03:13]} 28. Kf1 {[%emt 0:00:28]} Bc5 {[%emt 0:00:20]} 29. bxa6 {[%emt 0:01:57]} bxa6 {[%emt 0:00:30]} 30. Rdb1 {[%emt 0:02:39]} h5 {[%emt 0:03:25]} 31. Rg3 {[%emt 0:03:28]} e3 {[%emt 0:02:23][%cal Og8f7]} 32. Rb7 {[%emt 0:01:11]} (32. Rb8+ Kf7 33. Rb2 (33. Rb7+ $2 Kf6 $17) 33... Kf6) 32... Bd4 {[%emt 0:05:44][%mdl 1024] Black has compensation.} 33. Ke2 {[%emt 0:01:16] Kd3 is the strong threat.} Rc2+ {[%emt 0:01:02]} 34. Kd3 {[%emt 0:00:16]} (34. Kd1 $11 {keeps the balance.} Rd2+ 35. Ke1) 34... Rd2+ $17 {[%emt 0:01:12]} 35. Kc4 {[%emt 0:00:06]} e2 {[%emt 0:06:47]} 36. Re7 {[%emt 0:01:08][%cal Oe7e2]} Bf6 {[%emt 0:01:39]} (36... h4 $17 37. Rd3 Be5) 37. Re8+ $11 {[%emt 0:01:05]} Kf7 {[%emt 0:00:42]} 38. Rge3 {[%emt 0:00:07]} Rd4+ $1 {[%emt 0:03:18]} 39. Kb3 {[%emt 0:00:08]} Rxd5 {[%emt 0:00:07]} (39... Be5 $1 $15 40. Rxe2 Kxe8 41. fxe5 Rxd5 42. exd6+ Kf7 (42... Kd7 43. Re7+ Kxd6 44. Rxg7 $11)) 40. Rxe2 $14 {[%emt 0:00:11]} Rxa5 {[%emt 0:00:07]} 41. Ra8 {[%emt 0:31:12]} h4 {[%emt 0:36:13]} 42. Ra2 {[%emt 0:00:00]} Rb5+ {[%emt 0:00:00]} 43. Kc2 {[%emt 0:00:00]} Rb4 {[%emt 0:00:00]} 44. g3 {[%emt 0:00:00]} Rc4+ {[%emt 0:00:00]} 45. Kd1 {[%emt 0:00:00]} hxg3 {[%emt 0:00:00]} 46. hxg3 {[%emt 0:00:00]} (46. R2xa6 {is a self mate.} g2 (46... gxh2 $2 47. Rh8 $19) 47. R8a7+ Kg6) 46... Rc3 {[%emt 0:00:00]} 47. R8xa6 {[%emt 0:00:00]} Rxg3 {[%emt 0:00:00]} 48. Rxd6 {[%emt 0:00:00]} Kg6 {[%emt 0:00:00]} 49. Raa6 {[%emt 0:00:00]} Rf3 {[%emt 0:00:00] [#]} 50. Rxf6+ {[%emt 0:00:37]} gxf6 $11 {[%emt 0:00:00] KR-KR} 51. Ke2 {[%emt 0:01:05]} Rxf4 {[%emt 0:00:00]} 52. Ke3 $1 {[%emt 0:01:21]} Rb4 {[%emt 0:00:00]} 53. Kf3 {[%emt 0:00:18]} Kg5 {[%emt 0:00:00]} 54. Ra3 {[%emt 0:01:28]} Rh4 {[%emt 0:00:00]} 55. Ra8 {[%emt 0:00:39]} Rh3+ {[%emt 0:00:00]} 56. Kg2 {[%emt 0:02:09]} Rb3 {[%emt 0:00:00]} 57. Ra4 {[%emt 0:00:16]} Re3 {[%emt 0:00:00]} 58. Kf2 {[%emt 0:00:38]} Re4 {[%emt 0:00:00]} 59. Ra3 {[%emt 0:00:27]} Rf4+ {[%emt 0:00:00]} 60. Kg2 {[%emt 0:00:42]} Rc4 {[%emt 0:00:00]} 61. Kf3 {[%emt 0:01:02]} Rc2 {[%emt 0:00:00]} 62. Rb3 {[%emt 0:00:24]} Rh2 {[%emt 0:00:00]} 63. Rb8 {[%emt 0:00:39] White threatens Rg8+ and mate.} Rh3+ {[%emt 0:00:00]} 64. Kg2 {[%emt 0:00:10]} Re3 {[%emt 0:00:00]} 65. Kf2 {[%emt 0:00:26]} Rc3 {[%emt 0:00:00]} 66. Rb4 {[%emt 0:00:27]} Rc8 {[%emt 0:00:00]} 67. Kf3 {[%emt 0:00:32]} Ra8 {[%emt 0:00:00]} 68. Rc4 {[%emt 0:00:37]} Rh8 {[%emt 0:00:00]} 69. Ra4 {[%emt 0:00:49]} Rh1 {[%emt 0:00:00]} 70. Kg2 {[%emt 0:00:23]} Re1 {[%emt 0:00:00]} 71. Kf3 {[%emt 0:00:27]} Rf1+ {[%emt 0:00:00]} 72. Kg2 {[%emt 0:00:46]} Rf4 {[%emt 0:00:00]} 73. Ra3 $1 {[%emt 0:00:41]} Rg4+ {[%emt 0:00:00] Black continues to play with concentration.} 74. Kf3 {[%emt 0:00:31]} Rc4 {[%emt 0:00:00]} 75. Rb3 {[%emt 0:00:16]} Rc7 {[%emt 0:00:00]} 76. Ra3 {[%emt 0:00:15]} Rb7 {[%emt 0:00:06]} 77. Rc3 {[%emt 0:00:05]} Rb1 {[%emt 0:00:34]} 78. Ra3 {[%emt 0:00:16]} Rh1 {[%emt 0:00:25]} 79. Kg2 {[%emt 0:00:29] Repels Rh3} Rh7 {[%emt 0:00:28]} 80. Ra4 {[%emt 0:00:30]} Rh4 {[%emt 0:00:28]} 81. Ra3 {[%emt 0:00:20]} Kg4 {[%emt 0:00:18]} 82. Ra8 {[%emt 0:01:57]} Rh7 {[%emt 0:00:42]} 83. Ra4+ {[%emt 0:00:36]} f4 {[%emt 0:00:14]} 84. Rb4 {[%emt 0:00:26]} Ra7 {[%emt 0:00:56] ( -> ...Ra2+)} 85. Rb3 $2 {[%emt 0:00:24][%mdl 8192] [#]} (85. Rb2 $17) 85... f3+ $1 {[%emt 0:00:18]} 86. Kf2 {[%emt 0:00:45]} Ra2+ {[%emt 0:00:08]} 87. Kf1 $2 {[%emt 0:00:16][%mdl 8192]} (87. Ke1 $17) 87... Kg3 {[%emt 0:00:05]} 88. Rb1 {[%emt 0:00:05]} Rh2 {[%emt 0:00:07] Weighted Error Value: White=0.11 (very precise) /Black=0.08 (flawless) .  Loses game:     	White=1     	---        Mistake:       	White=3     	Black=2      Inaccurate:     	White=4     	Black=1      OK:         	White=17    	Black=28     Best:        	White=4     	Black=4      Strong:       	White=2     	Black=1      Brilliant:      	---       	Black=1} 0-1

[Event "Sardinia World Festival-A 2024"]
[Site "Orosei"]
[Date "2024.04.29"]
[Round "3.20"]
[White "Sokolovsky, Yahli"]
[Black "Vergara Anton, Diego"]
[Result "1/2-1/2"]
[ECO "B15"]
[WhiteElo "2490"]
[BlackElo "2387"]
[Annotator "TA"]
[PlyCount "63"]
[EventDate "2024.04.26"]
[EventType "swiss"]
[EventCountry "ITA"]
[SourceTitle "playchess.com"]
[Source "ChessBase"]
[SourceQuality "1"]
[TimeControl "40/5400+30:1800+30"]

{[%evp 14,63,17,26,19,16,46,16,30,14,30,9,10,15,0,4,19,14,31,29,42,42,22,18,38,32,33,43,27,25,41,16,17,0,0,0,0,0,0,-10,-20,-52,-22,-35,0,-39,-14,-53,-63,-61,-49,-77]} 1. e4 {[%emt 0:00:10]} c6 {[%emt 0:00:18]} 2. d4 {[%emt 0:00:06]} d5 {[%emt 0:00:04]} 3. Nd2 {[%emt 0:00:04]} dxe4 {[%emt 0:00:07]} 4. Nxe4 {[%emt 0:00:03]} Nf6 {[%emt 0:00:07]} 5. Nxf6+ {[%emt 0:00:04]} exf6 {[%emt 0:00:06]} 6. c3 {[%emt 0:00:06][%cal Bc2c3,Bc3c4,Bc4c5][%mdl 32]} Bd6 {[%emt 0:00:09]} 7. Bd3 {[%emt 0:00:16]} O-O {[%emt 0:00:17]} 8. Qc2 {[%emt 0:00:08] Active counter play!} Re8+ {[%emt 0:00:10]} 9. Ne2 {[%emt 0:00:03]} h5 {[%emt 0:00:19]} 10. Be3 {[%emt 0:01:19]} Nd7 {[%emt 0:00:37][%cal Bb8d7,Bd7f8,Bf8g6,Bg6f4][%mdl 32] The position is equal.} 11. c4 {[%emt 0:00:46]} Nf8 {[%emt 0:00:17]} 12. O-O-O {[%emt 0:00:42]} Be6 {[%emt 0:00:58]} 13. Kb1 {[%emt 0:07:07]} Rc8 {[%emt 0:00:38]} 14. a3 {[%emt 0:00:28]} Ng6 {[%emt 0:05:28][%cal Ob7b5]} 15. Nc3 {[%emt 0:00:43]} Nf4 {[%emt 0:05:07]} 16. c5 {[%emt 0:05:53]} Bb8 {[%emt 0:01:28][%cal Bd6b8,Bb8f4,Bf4c7][%mdl 32]} 17. Bxf4 {[%emt 0:00:30]} Bxf4 {[%emt 0:00:05]} 18. Bh7+ {[%emt 0:00:19]} Kh8 {[%emt 0:05:35] [#] White must now prevent ...g6.} 19. Bf5 {[%emt 0:00:13]} Qd7 {[%emt 0:02:08]} 20. Bxe6 {[%emt 0:00:10]} Qxe6 {[%emt 0:00:14]} 21. g3 {[%emt 0:28:25]} Bc7 {[%emt 0:03:32]} 22. d5 {[%emt 0:04:19]} cxd5 {[%emt 0:00:28]} 23. Rxd5 {[%emt 0:00:07]} g6 {[%emt 0:03:18]} 24. Rhd1 {[%emt 0:00:07]} Kg7 {[%emt 0:04:34]} 25. Nb5 {[%emt 0:10:26]} a6 {[%emt 0:03:10]} 26. Nxc7 {[%emt 0:02:10]} Rxc7 {[%emt 0:00:03]} 27. f4 {[%emt 0:08:02]} Qe3 {[%emt 0:01:45]} 28. R5d3 {[%emt 0:02:10]} Qe7 {[%emt 0:05:07]} (28... Qxc5 $2 {too greedy.} 29. Rc3 $18) 29. Rc3 {[%emt 0:00:55]} Rec8 {[%emt 0:01:19]} 30. Rc1 {[%emt 0:04:24]} Rd8 {[%emt 0:01:46]} 31. Qg2 {[%emt 0:05:56]} Qe6 {[%emt 0:02:36]} 32. Rc4 {[%emt 0:01:02] Weighted Error Value: White=0.09 (flawless) /Black=0.10 (very precise) .  Inaccurate:     	White=5     	Black=3      OK:         	White=8     	Black=8} 1/2-1/2

[Event "Sardinia World Festival-A 2024"]
[Site "Orosei"]
[Date "2024.04.29"]
[Round "3.21"]
[White "Fava, Lorenzo"]
[Black "Stoyanov, Tsvetan"]
[Result "1/2-1/2"]
[ECO "D04"]
[WhiteElo "2279"]
[BlackElo "2473"]
[Annotator "TA"]
[PlyCount "115"]
[EventDate "2024.04.26"]
[EventType "swiss"]
[EventCountry "ITA"]
[SourceTitle "playchess.com"]
[Source "ChessBase"]
[SourceQuality "1"]
[TimeControl "40/5400+30:1800+30"]

{[%evp 11,115,0,6,-1,0,3,4,0,7,0,0,10,11,8,2,-3,6,-1,-11,0,-14,-20,35,8,11,16,10,16,61,11,67,0,0,-6,-10,-5,-10,-9,-8,-6,-2,-24,0,0,0,0,0,0,0,-25,-12,-35,-34,-48,-48,-111,-17,-13,0,-81,-9,-4,-4,-12,-10,-16,-14,-20,-15,-121,-110,-126,-118,-119,-112,-121,-116,-124,-99,-97,-24,-23,-13,-25,0,0,0,0,0,0,0,0,0,0,0,0,0,0,0,0,0,0,0,0,0,0]} 1. Nf3 {[%emt 0:00:53]} d5 {[%emt 0:00:35]} 2. e3 {[%emt 0:00:16]} Nf6 {[%emt 0:00:41]} 3. b3 {[%emt 0:00:15]} Bf5 {[%emt 0:00:24]} 4. Bb2 {[%emt 0:00:17]} e6 {[%emt 0:00:23]} 5. d4 {[%emt 0:01:01]} Nbd7 {[%emt 0:05:07]} 6. Bd3 {[%emt 0:00:18] D04: Colle System.} Ne4 {[%emt 0:07:15]} 7. O-O {[%emt 0:01:16]} Bd6 {[%emt 0:00:44]} 8. c4 {[%emt 0:04:10]} c6 {[%emt 0:00:14]} 9. Qc2 {[%emt 0:03:23]} Qf6 {[%emt 0:12:42]} 10. Ba3 $146 {[%emt 0:25:56]} ({Predecessor:} 10. Nc3 Nxc3 11. Bxc3 Bg4 12. Nd2 Qh6 13. g3 f5 14. cxd5 cxd5 15. f4 Qh5 16. Bb2 {1-0 Jarvenpaa,J (2273)-Norri,J (2266) FIN-chT 2223 2022 (8.2)}) 10... Bxa3 {[%emt 0:07:34]} 11. Nxa3 {[%emt 0:00:05]} h5 {[%emt 0:07:22]} 12. Nd2 {[%emt 0:02:31]} Nxd2 {[%emt 0:03:17]} 13. Qxd2 {[%emt 0:00:11]} h4 {[%emt 0:00:18]} 14. f3 {[%emt 0:10:08]} Bxd3 {[%emt 0:07:46]} 15. Qxd3 {[%emt 0:00:05]} Rd8 {[%emt 0:00:20]} 16. Rad1 {[%emt 0:06:48]} Rh6 {[%emt 0:08:45]} (16... O-O $11) 17. e4 {[%emt 0:01:20]} Qe7 {[%emt 0:10:54]} 18. Nc2 {[%emt 0:01:45]} dxe4 {[%emt 0:03:25]} 19. fxe4 {[%emt 0:07:07]} Rg6 {[%emt 0:07:35]} 20. Qf3 {[%emt 0:08:46]} (20. Ne1 $14) 20... Qf6 {[%emt 0:02:25]} (20... c5 $1 $11) 21. Qh3 {[%emt 0:05:01]} (21. Qe2 $14 Qg5 22. e5) 21... Qg5 $11 {[%emt 0:00:19]} 22. d5 {[%emt 0:00:43]} Qg4 {[%emt 0:02:38]} 23. Qxg4 {[%emt 0:04:50]} Rxg4 {[%emt 0:00:02]} 24. Nd4 {[%emt 0:01:44]} cxd5 {[%emt 0:07:46]} 25. exd5 {[%emt 0:00:57]} Nf6 {[%emt 0:00:08]} 26. Nb5 {[%emt 0:03:58]} a6 {[%emt 0:01:04]} 27. Nc3 {[%emt 0:00:36]} h3 {[%emt 0:01:08]} 28. g3 {[%emt 0:00:33]} exd5 {[%emt 0:00:02]} 29. Rfe1+ {[%emt 0:00:07]} Kf8 {[%emt 0:00:07]} 30. cxd5 {[%emt 0:02:15]} (30. Nxd5 $5 Nxd5 31. Re5 $17) 30... Rg5 {[%emt 0:01:25]} 31. Rd4 {[%emt 0:00:44]} Rc8 {[%emt 0:01:14]} (31... Nxd5 $2 32. Red1 $18) 32. Re3 {[%emt 0:03:38]} Ng4 {[%emt 0:00:27]} 33. Red3 {[%emt 0:00:46]} (33. Rf3 $15) 33... Ne5 {[%emt 0:01:35]} (33... Ke7 $17 34. a4 (34. Rb4 b5 $15) 34... b6) 34. Re3 $11 {[%emt 0:00:01]} Ng4 {[%emt 0:00:53]} (34... Ke7 $11) 35. Red3 $1 $17 {[%emt 0:00:04]} Re8 {[%emt 0:00:46]} ({Black should play} 35... Ke7 $17 36. Rf3 (36. Rb4 b5 $17) 36... f6) 36. Rd1 $1 $11 {[%emt 0:02:28]} Ne5 {[%emt 0:00:35]} 37. Rf1 {[%emt 0:00:22]} Rc8 {[%emt 0:00:12]} 38. Ne4 {[%emt 0:03:21]} Rg4 {[%emt 0:00:08]} 39. Rf5 {[%emt 0:00:43]} f6 {[%emt 0:00:56]} 40. Kf2 {[%emt 0:00:30]} (40. d6 $11 {keeps the balance.}) 40... Rc2+ $17 {[%emt 0:00:42]} 41. Rd2 {[%emt 0:30:26]} Rxd2+ {[%emt 0:18:50]} 42. Nxd2 {[%emt 0:00:00]} Rd4 {[%emt 0:00:01]} 43. Ke2 {[%emt 0:00:00]} Rxd5 {[%emt 0:00:40]} 44. Rh5 {[%emt 0:00:00]} Kg8 {[%emt 0:00:04]} 45. Rxh3 {[%emt 0:00:00]} b5 {[%emt 0:00:21]} ({Black should try} 45... Nd3 $17 46. a4 Nc1+ 47. Ke1 Rd3) 46. Rh5 {[%emt 0:00:00]} Rc5 {[%emt 0:07:59]} 47. Kd1 {[%emt 0:00:00]} b4 {[%emt 0:02:45]} 48. Rh4 {[%emt 0:00:00]} Rd5 {[%emt 0:00:27]} 49. Rf4 {[%emt 0:00:00]} (49. Rxb4 $2 {is the wrong capture.} Nf3 50. Ke2 (50. Rb8+ $2 Kh7 $19) 50... Nxd2 $19 (50... Rxd2+ 51. Kxf3 Rxa2 52. Ra4 $11)) 49... Nd3 {[%emt 0:00:50]} 50. Rf1 {[%emt 0:00:00]} Ne5 {[%emt 0:03:40]} 51. Rf4 {[%emt 0:00:00]} a5 {[%emt 0:00:00]} 52. Ke2 {[%emt 0:00:00]} Kf7 {[%emt 0:00:19]} 53. Nc4 {[%emt 0:02:33]} g5 {[%emt 0:00:08]} 54. Re4 {[%emt 0:00:11]} Nc6 {[%emt 0:00:19]} 55. Kf2 {[%emt 0:01:02]} Rd1 {[%emt 0:00:33]} 56. Re2 {[%emt 0:00:44]} Rh1 {[%emt 0:00:44]} 57. Kg2 {[%emt 0:00:13]} Rd1 {[%emt 0:00:51]} 58. Kf2 {[%emt 0:01:00]} 1/2-1/2